fUSD/lending_fUSD_20250421
["ID","MTS","AMOUNT","RATE_DAILY","PERIOD"]
[358485791,1745205034083,-523.30991122,0.00063013,120]
[358485792,1745205034093,-199.10089197,0.00063013,120]
[358485793,1745205034102,-511.5699732,0.00063013,120]
[358485794,1745205034112,-500.0,0.00063013,120]
[358485795,1745205034122,-500.0,0.00063013,120]
[358485796,1745205034131,-500.0,0.00063013,120]
[358485797,1745205034141,-551.29144262,0.00063013,120]
[358485798,1745205034151,-334.80534902,0.00063013,120]
[358485799,1745205034161,-500.0,0.00063013,120]
[358485800,1745205034170,-500.0,0.00063013,120]
[358485801,1745205034180,-500.0,0.00063013,2]
[358485802,1745205034189,-500.0,0.00063013,120]
[358485803,1745205034199,-500.0,0.00063013,120]
[358485804,1745205034208,-500.0,0.00063013,120]
[358485805,1745205034217,-545.55730455,0.00063013,120]
[358485806,1745205034227,-500.0,0.00063013,120]
[358485807,1745205034236,-500.0,0.00063013,120]
[358485808,1745205034245,-500.0,0.00063013,120]
[358485809,1745205034255,-500.0,0.00063013,120]
[358485810,1745205034265,-500.0,0.00063013,120]
[358485811,1745205034274,-195.45733755,0.00063013,120]
[358485812,1745205034283,-500.0,0.00063013,120]
[358485813,1745205034293,-500.0,0.00063013,30]
[358485814,1745205034302,-500.0,0.00063013,120]
[358485815,1745205034312,-523.54175591,0.00063013,120]
[358485816,1745205034321,-500.0,0.00063013,120]
[358485817,1745205034330,-500.0,0.00063013,120]
[358485818,1745205034340,-500.0,0.00063013,120]
[358485819,1745205034349,-500.0,0.00063013,120]
[358485820,1745205034358,-500.0,0.00063013,120]
[358485821,1745205034368,-500.0,0.00063013,120]
[358485822,1745205034380,-517.38463725,0.00063013,120]
[358485823,1745205034389,-500.0,0.00063013,120]
[358485824,1745205034399,-250.0,0.00063013,120]
[358485825,1745205034407,-500.0,0.00063013,120]
[358485826,1745205034418,-500.0,0.00063013,120]
[358485827,1745205034427,-582.52669267,0.00063013,120]
[358485828,1745205034436,-500.0,0.00063013,120]
[358485829,1745205034446,-270.19695642,0.00063013,120]
[358485830,1745205034457,-500.0,0.00063013,120]
[358485831,1745205034466,-532.17637582,0.00063013,120]
[358485832,1745205034476,-500.0,0.00063013,120]
[358485833,1745205034485,-1193.23,0.00063013,120]
[358485834,1745205034495,-500.0,0.00063013,120]
[358485835,1745205034504,-500.0,0.00063013,120]
[358485836,1745205034513,-500.0,0.00063013,120]
[358485837,1745205034522,-500.0,0.00063013,120]
[358485838,1745205034531,-518.09002428,0.00063013,120]
[358485839,1745205034540,-500.0,0.00063013,120]
[358485840,1745205034549,-514.22434345,0.00063013,120]
[358485841,1745205034558,-500.0,0.00063013,120]
[358485842,1745205034567,-500.0,0.00063013,120]
[358485843,1745205034576,-522.94760242,0.00063013,120]
[358485844,1745205034585,-500.0,0.00063013,120]
[358485845,1745205034594,-538.61071507,0.00063013,120]
[358485846,1745205034603,-529.17004573,0.00063013,120]
[358485847,1745205034612,-500.0,0.00063013,120]
[358485848,1745205034620,-500.0,0.00063013,120]
[358485849,1745205034629,-2237.74,0.00063013,120]
[358485850,1745205034638,-500.0,0.00063013,120]
[358485851,1745205034647,-500.0,0.00063013,120]
[358485852,1745205034656,-537.17308493,0.00063013,120]
[358485853,1745205034665,-576.50626452,0.00063013,120]
[358485854,1745205034674,-500.0,0.00063013,120]
[358485855,1745205034683,-500.0,0.00063013,120]
[358485856,1745205034692,-275.06719502,0.00063013,120]
[358485857,1745205034701,-554.60362736,0.00063013,120]
[358485858,1745205034710,-574.47228221,0.00063013,120]
[358485859,1745205034719,-500.0,0.00063013,120]
[358485860,1745205034729,-164.02108377,0.00063013,120]
[358485861,1745205034738,-998.64,0.00063013,120]
[358485862,1745205034747,-210.32957908,0.00063013,120]
[358485863,1745205034756,-500.0,0.00063013,120]
[358485864,1745205034765,-552.17207215,0.00063013,120]
[358485865,1745205034774,-500.0,0.00063013,120]
[358485866,1745205034783,-500.0,0.00063013,120]
[358485867,1745205034792,-802.39,0.00063013,120]
[358485868,1745205034801,-500.0,0.00063013,120]
[358485869,1745205034810,-500.0,0.00063013,120]
[358485870,1745205034819,-570.41510949,0.00063013,120]
[358485871,1745205034828,-500.0,0.00063013,120]
[358485872,1745205034837,-258.88411518,0.00063013,120]
[358485873,1745205034846,-500.0,0.00063013,120]
[358485874,1745205034855,-533.65285747,0.00063013,120]
[358485875,1745205034865,-939.49,0.00063013,120]
[358485876,1745205034874,-500.0,0.00063013,120]
[358485877,1745205034883,-514.12977325,0.00063013,120]
[358485878,1745205034892,-646.47631652,0.00063013,120]
[358485879,1745205034903,-500.0,0.00063013,120]
[358485880,1745205035020,-500.0,0.00063013,120]
[358485881,1745205035045,-500.0,0.00063013,120]
[358485882,1745205035054,-500.0,0.00063013,120]
[358485883,1745205035063,-500.0,0.00063013,120]
[358485884,1745205035072,-500.0,0.00063013,120]
[358485885,1745205035081,-585.24399957,0.00063013,120]
[358485886,1745205035090,-539.75018618,0.00063013,120]
[358485887,1745205035099,-500.0,0.00063013,120]
[358485888,1745205035108,-500.0,0.00063013,120]
[358485889,1745205035117,-500.0,0.00063013,120]
[358485890,1745205035126,-500.0,0.00063013,120]
[358485891,1745205035135,-519.32851682,0.00063013,120]
[358485892,1745205035144,-500.0,0.00063013,120]
[358485893,1745205035154,-599.46,0.00063013,120]
[358485894,1745205035163,-521.69765095,0.00063013,120]
[358485895,1745205035174,-540.30237646,0.00063013,120]
[358485896,1745205035183,-509.23025477,0.00063013,120]
[358485897,1745205035195,-500.0,0.00063013,120]
[358485898,1745205035204,-500.0,0.00063013,120]
[358485899,1745205035215,-500.0,0.00063013,120]
[358485900,1745205035224,-500.0,0.00063013,120]
[358485901,1745205035233,-539.17818239,0.00063013,120]
[358485902,1745205035242,-500.0,0.00063013,120]
[358485903,1745205035252,-575.4548211,0.00063013,120]
[358485904,1745205035260,-429.62605538,0.00063013,120]
[358485905,1745205035270,-500.0,0.00063013,120]
[358485906,1745205035279,-500.0,0.00063013,120]
[358485907,1745205035288,-500.0,0.00063013,120]
[358485908,1745205035297,-210.97333691,0.00063013,120]
[358485909,1745205035306,-500.0,0.00063013,120]
[358485910,1745205035318,-500.0,0.00063013,120]
[358485911,1745205035327,-512.62408005,0.00063013,120]
[358485912,1745205035336,-500.0,0.00063013,120]
[358485913,1745205035346,-500.0,0.00063013,120]
[358485914,1745205035355,-500.0,0.00063013,120]
[358485915,1745205035364,-300.0,0.00063013,120]
[358485916,1745205035375,-546.73523348,0.00063013,120]
[358485917,1745205035386,-586.10973081,0.00063013,120]
[358485918,1745205035395,-500.0,0.00063013,120]
[358485919,1745205035404,-500.0,0.00063013,120]
[358485920,1745205035413,-500.0,0.00063013,120]
[358485921,1745205035425,-261.28806023,0.00063013,120]
[358485922,1745205035434,-205.85199651,0.00063013,120]
[358485923,1745205035443,-538.49109632,0.00063013,120]
[358485924,1745205035454,-560.37630026,0.00063013,120]
[358485925,1745205035463,-500.0,0.00063013,120]
[358485926,1745205035474,-629.84781352,0.00063013,120]
[358485927,1745205035484,-500.0,0.00063013,120]
[358485928,1745205035494,-1077.48,0.00063013,120]
[358485929,1745205035503,-500.0,0.00063013,120]
[358485930,1745205035512,-500.0,0.00063013,120]
[358485931,1745205035523,-500.0,0.00063013,120]
[358485932,1745205035533,-500.0,0.00063013,120]
[358485933,1745205035543,-193.12669195,0.00063013,120]
[358485934,1745205035553,-500.0,0.00063013,120]
[358485935,1745205035562,-500.0,0.00063013,120]
[358485936,1745205035571,-500.0,0.00063013,120]
[358485937,1745205035580,-500.0,0.00063013,120]
[358485938,1745205035590,-500.0,0.00063013,120]
[358485939,1745205035599,-500.0,0.00063013,120]
[358485940,1745205035608,-500.0,0.00063013,120]
[358485941,1745205035617,-500.0,0.00063013,120]
[358485942,1745205035626,-625.50746254,0.00063013,120]
[358485943,1745205035635,-500.0,0.00063013,120]
[358485944,1745205035645,-500.0,0.00063013,120]
[358485945,1745205035654,-500.0,0.00063013,120]
[358485946,1745205035663,-500.0,0.00063013,120]
[358485947,1745205035672,-500.0,0.00063013,120]
[358485948,1745205035681,-523.67123264,0.00063013,120]
[358485949,1745205035690,-511.33194378,0.00063013,120]
[358485950,1745205035699,-500.0,0.00063013,120]
[358485951,1745205035708,-543.85444649,0.00063013,120]
[358485952,1745205035717,-500.0,0.00063013,120]
[358485953,1745205035726,-544.79583879,0.00063013,120]
[358485954,1745205035735,-500.0,0.00063013,120]
[358485955,1745205035743,-500.0,0.00063013,120]
[358485956,1745205035752,-500.0,0.00063013,120]
[358485957,1745205035762,-551.57591507,0.00063013,120]
[358485958,1745205035771,-500.0,0.00063013,120]
[358485959,1745205035779,-500.0,0.00063013,120]
[358485960,1745205035788,-500.0,0.00063013,120]
[358485961,1745205035798,-500.0,0.00063013,120]
[358485962,1745205035807,-500.0,0.00063013,120]
[358485963,1745205035816,-500.0,0.00063013,120]
[358485964,1745205035825,-513.00526959,0.00063013,120]
[358485965,1745205035835,-500.0,0.00063013,10]
[358485966,1745205035846,-549.39229299,0.00063013,120]
[358485967,1745205035857,-500.0,0.00063013,120]
[358485968,1745205035867,-529.18,0.00063013,120]
[358485969,1745205035876,-544.42752104,0.00063013,120]
[358485970,1745205035886,-500.0,0.00063013,120]
[358485971,1745205035896,-500.0,0.00063013,120]
[358485972,1745205035906,-512.90726598,0.00063013,120]
[358485973,1745205035918,-500.0,0.00063013,120]
[358485974,1745205035928,-500.0,0.00063013,120]
[358485975,1745205035940,-500.0,0.00063013,120]
[358485976,1745205035950,-500.0,0.00063013,120]
[358485977,1745205035959,-528.0446655,0.00063013,120]
[358485978,1745205035970,-500.0,0.00063013,120]
[358485979,1745205035979,-500.0,0.00063013,120]
[358485980,1745205035988,-500.0,0.00063013,120]
[358485981,1745205035998,-500.0,0.00063013,120]
[358485982,1745205036008,-500.0,0.00063013,20]
[358485983,1745205036018,-500.0,0.00063013,120]
[358485984,1745205036028,-603.15575965,0.00063013,120]
[358485985,1745205036038,-500.0,0.00063013,120]
[358485986,1745205036047,-500.0,0.00063013,120]
[358485987,1745205036057,-500.0,0.00063013,120]
[358485988,1745205036067,-500.0,0.00063013,120]
[358485989,1745205036076,-500.0,0.00063013,120]
[358485990,1745205036085,-555.60651194,0.00063013,120]
[358485991,1745205036095,-500.0,0.00063013,120]
[358485992,1745205036104,-500.0,0.00063013,120]
[358485993,1745205036114,-525.51196505,0.00063013,120]
[358485994,1745205036123,-436.4096124,0.00063013,120]
[358485995,1745205036133,-511.38,0.00063013,2]
[358485996,1745205036142,-500.0,0.00063013,120]
[358485997,1745205036151,-501.72196206,0.00063013,120]
[358485998,1745205036160,-513.65292952,0.00063013,120]
[358485999,1745205036170,-500.0,0.00063013,120]
[358486000,1745205036179,-500.0,0.00063013,120]
[358486001,1745205036188,-500.0,0.00063013,120]
[358486002,1745205036197,-522.83916211,0.00063013,120]
[358486003,1745205036207,-500.0,0.00063013,120]
[358486004,1745205036216,-553.98824571,0.00063013,120]
[358486005,1745205036225,-500.0,0.00063013,120]
[358486006,1745205036234,-529.79302844,0.00063013,120]
[358486007,1745205036243,-1000.0,0.00063013,120]
[358486008,1745205036253,-500.0,0.00063013,120]
[358486009,1745205036262,-500.0,0.00063013,120]
[358486010,1745205036271,-500.0,0.00063013,120]
[358486011,1745205036281,-500.0,0.00063013,120]
[358486012,1745205036290,-500.0,0.00063013,120]
[358486013,1745205036300,-500.0,0.00063013,120]
[358486014,1745205036309,-500.0,0.00063013,120]
[358486015,1745205036318,-584.11000833,0.00063013,120]
[358486016,1745205036327,-515.84847871,0.00063013,120]
[358486017,1745205036336,-500.0,0.00063013,120]
[358486018,1745205036345,-502.30352225,0.00063013,120]
[358486019,1745205036355,-500.0,0.00063013,120]
[358486020,1745205036364,-500.0,0.00063013,120]
[358486021,1745205036373,-500.0,0.00063013,120]
[358486022,1745205036385,-548.37548356,0.00063013,120]
[358486023,1745205036395,-500.0,0.00063013,120]
[358486024,1745205036404,-500.0,0.00063013,120]
[358486025,1745205036414,-594.35943558,0.00063013,120]
[358486026,1745205036426,-500.0,0.00063013,120]
[358486027,1745205036435,-500.0,0.00063013,120]
[358486028,1745205036444,-500.0,0.00063013,120]
[358486029,1745205036455,-500.0,0.00063013,120]
[358486030,1745205036464,-500.0,0.00063013,120]
[358486031,1745205036473,-531.79381831,0.00063013,120]
[358486032,1745205036482,-500.0,0.00063013,120]
[358486033,1745205036491,-551.11582393,0.00063013,120]
[358486034,1745205036501,-1500.93,0.00063013,120]
[358486035,1745205036510,-500.0,0.00063013,120]
[358486036,1745205036519,-500.0,0.00063013,120]
[358486037,1745205036528,-500.0,0.00063013,120]
[358486038,1745205036537,-500.0,0.00063013,120]
[358486039,1745205036546,-500.0,0.00063013,120]
[358486040,1745205036555,-710.79,0.00063013,120]
[358486041,1745205036563,-500.0,0.00063013,120]
[358486042,1745205036572,-500.0,0.00063013,120]
[358486043,1745205036581,-500.0,0.00063013,12]
[358486044,1745205036590,-500.0,0.00063013,118]
[358486045,1745205036599,-500.0,0.00063013,120]
[358486046,1745205036608,-500.0,0.00063013,120]
[358486047,1745205036617,-571.92965288,0.00063013,120]
[358486048,1745205036625,-686.83,0.00063013,120]
[358486049,1745205036634,-500.0,0.00063013,120]
[358486050,1745205036643,-748.2,0.00063013,120]
[358486051,1745205036652,-500.0,0.00063013,120]
[358486052,1745205036660,-515.16869148,0.00063013,120]
[358486053,1745205036669,-500.0,0.00063013,120]
[358486054,1745205036678,-500.0,0.00063013,120]
[358486055,1745205036687,-500.0,0.00063013,120]
[358486056,1745205036696,-500.0,0.00063013,120]
[358486057,1745205036705,-523.14310518,0.00063013,120]
[358486058,1745205036714,-733.09,0.00063013,120]
[358486059,1745205036723,-526.49566515,0.00063013,120]
[358486060,1745205036732,-500.0,0.00063013,120]
[358486061,1745205036743,-2407.28583913,0.00063013,7]
[358486062,1745205036769,-384.20416087,0.00063013,7]
[358486063,1745205036778,-500.0,0.00063013,120]
[358486064,1745205036787,-500.0,0.00063013,120]
[358486065,1745205036796,-594.92466686,0.00063013,120]
[358486066,1745205036804,-500.0,0.00063013,120]
[358486067,1745205036813,-500.0,0.00063013,120]
[358486068,1745205036822,-500.0,0.00063013,120]
[358486069,1745205036831,-500.0,0.00063013,120]
[358486070,1745205036840,-496.01057926,0.00063013,120]
[358486074,1745205037634,-151.0,0.00038855,2]
[358486075,1745205037644,-151.0,0.00038855,2]
[358486076,1745205037655,-3.98942074,0.00063013,120]
[358486077,1745205037665,-500.0,0.00063013,120]
[358486078,1745205037674,-520.97713745,0.00063013,120]
[358486079,1745205037684,-555.37149622,0.00063013,120]
[358486080,1745205037693,-1000.0,0.00063013,120]
[358486081,1745205037702,-500.0,0.00063013,120]
[358486082,1745205037711,-500.0,0.00063013,120]
[358486083,1745205037721,-500.0,0.00063013,120]
[358486084,1745205037731,-500.0,0.00063013,120]
[358486085,1745205037740,-500.0,0.00063013,30]
[358486086,1745205037749,-1833.47,0.00063013,120]
[358486087,1745205037758,-500.0,0.00063013,120]
[358486088,1745205037767,-500.0,0.00063013,120]
[358486089,1745205037776,-500.0,0.00063013,120]
[358486090,1745205037786,-500.0,0.00063013,120]
[358486091,1745205037797,-999.0,0.00063013,120]
[358486092,1745205037807,-504.1217232,0.00063013,120]
[358486093,1745205037818,-368.15886098,0.00063013,120]
[358486094,1745205037827,-500.0,0.00063013,120]
[358486095,1745205037836,-510.1364892,0.00063013,120]
[358486096,1745205037845,-163.20272186,0.00063013,120]
[358486097,1745205037854,-500.0,0.00063013,120]
[358486098,1745205037865,-57.1227417,0.00063013,120]
[358486099,1745205037881,-503.40278086,0.00063013,120]
[358486100,1745205037890,-500.0,0.00063013,120]
[358486101,1745205037899,-500.0,0.00063013,120]
[358486102,1745205037908,-500.0,0.00063013,120]
[358486103,1745205037918,-575.44458625,0.00063013,120]
[358486104,1745205037928,-521.59346713,0.00063013,120]
[358486105,1745205037937,-115.48908192,0.00063013,120]
[358486106,1745205037950,-384.51091808,0.00063013,120]
[358486107,1745205037960,-348.86394823,0.00063013,120]
[358486108,1745205037970,-500.0,0.00063013,120]
[358486109,1745205037979,-515.90655005,0.00063013,120]
[358486110,1745205037989,-500.0,0.00063013,120]
[358486111,1745205037998,-473.59957733,0.00063013,120]
[358486112,1745205038008,-500.0,0.00063013,120]
[358486113,1745205038017,-500.0,0.00063013,120]
[358486114,1745205038026,-521.80369776,0.00063013,120]
[358486115,1745205038037,-817.76,0.00063013,120]
[358486116,1745205038046,-506.11782053,0.00063013,120]
[358486117,1745205038055,-500.0,0.00063013,120]
[358486118,1745205038064,-535.46998752,0.00063013,120]
[358486119,1745205038074,-500.0,0.00063013,120]
[358486120,1745205038082,-1019.27,0.00063013,120]
[358486121,1745205038091,-1019.27,0.00063013,120]
[358486122,1745205038100,-528.858239,0.00063013,120]
[358486123,1745205038109,-500.0,0.00063013,120]
[358486124,1745205038118,-538.24802769,0.00063013,120]
[358486125,1745205038127,-500.0,0.00063013,120]
[358486126,1745205038138,-500.0,0.00063013,120]
[358486127,1745205038148,-500.0,0.00063013,120]
[358486128,1745205038158,-550.48563296,0.00063013,120]
[358486129,1745205038167,-500.0,0.00063013,120]
[358486130,1745205038175,-500.0,0.00063013,120]
[358486131,1745205038185,-500.0,0.00063013,120]
[358486132,1745205038195,-645.4658013,0.00063013,120]
[358486133,1745205038204,-500.00877615,0.00063013,120]
[358486134,1745205038214,-525.43364993,0.00063013,120]
[358486135,1745205038225,-500.0,0.00063013,120]
[358486136,1745205038234,-522.99453227,0.00063013,120]
[358486137,1745205038245,-500.0,0.00063013,120]
[358486139,1745205038254,-502.04150899,0.00063013,120]
[358486140,1745205038264,-500.0,0.00063013,120]
[358486141,1745205038273,-500.0,0.00063013,120]
[358486142,1745205038282,-558.50216803,0.00063013,120]
[358486143,1745205038292,-679.8,0.00063013,120]
[358486144,1745205038302,-500.0,0.00063013,120]
[358486145,1745205038311,-500.0,0.00063013,120]
[358486146,1745205038320,-500.0,0.00063013,120]
[358486147,1745205038329,-500.0,0.00063013,120]
[358486148,1745205038338,-582.86,0.00063013,120]
[358486149,1745205038347,-1153.66,0.00063013,120]
[358486150,1745205038357,-500.0,0.00063013,120]
[358486151,1745205038481,-774.26,0.00063013,120]
[358486152,1745205038492,-500.0,0.00063013,120]
[358486153,1745205038501,-500.0,0.00063013,120]
[358486154,1745205038510,-500.0,0.00063013,120]
[358486155,1745205038520,-321.77997201,0.00063013,120]
[358486156,1745205038529,-577.79,0.00063013,120]
[358486157,1745205038539,-500.0,0.00063013,120]
[358486158,1745205038551,-516.79605235,0.00063013,120]
[358486159,1745205038560,-500.0,0.00063013,120]
[358486160,1745205038570,-500.0,0.00063013,120]
[358486161,1745205038579,-500.0,0.00063013,120]
[358486162,1745205038588,-500.0,0.00063013,120]
[358486163,1745205038598,-169.70041414,0.00063013,58]
[358486164,1745205038607,-1127.18,0.00063013,120]
[358486165,1745205038616,-500.0,0.00063013,120]
[358486166,1745205038625,-500.0,0.00063013,120]
[358486167,1745205038634,-542.87896645,0.00063013,120]
[358486168,1745205038643,-518.21357438,0.00063013,120]
[358486169,1745205038652,-500.0,0.00063013,120]
[358486170,1745205038661,-500.0,0.00063013,120]
[358486171,1745205038670,-500.0,0.00063013,120]
[358486172,1745205038679,-500.0,0.00063013,120]
[358486173,1745205038688,-532.26604069,0.00063013,120]
[358486174,1745205038697,-500.0,0.00063013,120]
[358486175,1745205038706,-500.0,0.00063013,120]
[358486176,1745205038715,-504.87959979,0.00063013,120]
[358486177,1745205038724,-760.25,0.00063013,120]
[358486178,1745205038733,-500.0,0.00063013,120]
[358486179,1745205038742,-2182.42,0.00063013,120]
[358486180,1745205038752,-704.26,0.00063013,120]
[358486181,1745205038761,-500.0,0.00063013,8]
[358486182,1745205038770,-544.01064249,0.00063013,120]
[358486183,1745205038779,-515.65640275,0.00063013,120]
[358486184,1745205038788,-500.0,0.00063013,120]
[358486185,1745205038797,-970.12,0.00063013,120]
[358486186,1745205038806,-411.2321765,0.00063013,120]
[358486187,1745205038815,-500.0,0.00063013,120]
[358486188,1745205038823,-500.0,0.00063013,120]
[358486189,1745205038832,-213.70876054,0.00063013,120]
[358486190,1745205038842,-1000.0,0.00063013,120]
[358486191,1745205038851,-500.0,0.00063013,120]
[358486192,1745205038860,-500.0,0.00063013,120]
[358486193,1745205038869,-500.0,0.00063013,120]
[358486194,1745205038878,-500.0,0.00063013,120]
[358486195,1745205038887,-500.0,0.00063013,120]
[358486196,1745205038896,-500.0,0.00063013,120]
[358486197,1745205038906,-500.0,0.00063013,120]
[358486198,1745205038915,-500.0,0.00063013,120]
[358486199,1745205038924,-500.0,0.00063013,120]
[358486200,1745205038933,-500.0,0.00063013,120]
[358486201,1745205038942,-768.63,0.00063013,120]
[358486202,1745205038951,-500.0,0.00063013,120]
[358486203,1745205038960,-524.86949902,0.00063013,120]
[358486204,1745205038969,-807.87,0.00063013,120]
[358486205,1745205038978,-500.0,0.00063013,120]
[358486206,1745205038987,-3439.08,0.00063013,2]
[358486207,1745205038995,-523.30995052,0.00063013,120]
[358486208,1745205039006,-187.32987917,0.00063013,120]
[358486209,1745205039017,-500.0,0.00063013,120]
[358486210,1745205039026,-1928.23,0.00063013,120]
[358486211,1745205039035,-621.39169438,0.00063013,120]
[358486212,1745205039044,-500.0,0.00063013,120]
[358486213,1745205039053,-341.0846403,0.00063013,120]
[358486214,1745205039062,-500.0,0.00063013,120]
[358486215,1745205039071,-500.0,0.00063013,120]
[358486216,1745205039081,-500.0,0.00063013,120]
[358486217,1745205039089,-500.0,0.00063013,120]
[358486218,1745205039099,-598.26690595,0.00063013,120]
[358486219,1745205039112,-500.0,0.00063013,120]
[358486220,1745205039122,-798.2,0.00063013,120]
[358486221,1745205039131,-582.29981595,0.00063013,120]
[358486222,1745205039140,-500.0,0.00063013,120]
[358486223,1745205039151,-500.0,0.00063013,120]
[358486224,1745205039160,-537.16216577,0.00063013,120]
[358486225,1745205039172,-500.0,0.00063013,120]
[358486226,1745205039182,-627.4494026,0.00063013,120]
[358486227,1745205039192,-500.0,0.00063013,120]
[358486228,1745205039202,-500.0,0.00063013,120]
[358486229,1745205039212,-500.0,0.00063013,120]
[358486230,1745205039222,-2029.99959765,0.00063013,120]
[358486231,1745205039231,-500.0,0.00063013,120]
[358486232,1745205039243,-514.51460321,0.00063013,120]
[358486233,1745205039254,-500.0,0.00063013,120]
[358486234,1745205039263,-500.0,0.00063013,120]
[358486235,1745205039273,-534.79878683,0.00063013,120]
[358486236,1745205039282,-500.0,0.00063013,120]
[358486237,1745205039292,-500.0,0.00063013,120]
[358486238,1745205039303,-500.0,0.00063013,120]
[358486239,1745205039311,-500.0,0.00063013,120]
[358486240,1745205039322,-500.0,0.00063013,120]
[358486241,1745205039331,-500.0,0.00063013,120]
[358486242,1745205039341,-500.0,0.00063013,120]
[358486243,1745205039351,-500.0,0.00063013,120]
[358486244,1745205039361,-500.0,0.00063013,120]
[358486245,1745205039370,-500.0,0.00063013,120]
[358486246,1745205039384,-514.61248297,0.00063013,120]
[358486247,1745205039394,-500.0,0.00063013,3]
[358486248,1745205039403,-500.0,0.00063013,120]
[358486249,1745205039413,-600.26624842,0.00063013,120]
[358486250,1745205039423,-500.0,0.00063013,120]
[358486251,1745205039433,-500.0,0.00063013,120]
[358486252,1745205039443,-510.73578026,0.00063013,120]
[358486253,1745205039452,-371.2802119,0.00063013,120]
[358486254,1745205039462,-500.0,0.00063013,120]
[358486255,1745205039471,-1380.59,0.00063013,120]
[358486256,1745205039481,-500.0,0.00063013,120]
[358486257,1745205039490,-1305.35,0.00063013,120]
[358486258,1745205039500,-500.0,0.00063013,120]
[358486259,1745205039510,-500.0,0.00063013,120]
[358486260,1745205039519,-500.0,0.00063013,120]
[358486261,1745205039529,-500.0,0.00063013,120]
[358486262,1745205039538,-500.0,0.00063013,120]
[358486263,1745205039547,-575.20173136,0.00063013,120]
[358486264,1745205039555,-500.0,0.00063013,120]
[358486265,1745205039564,-500.0,0.00063013,120]
[358486267,1745205039573,-2675.18,0.00063013,7]
[358486269,1745205039582,-500.0,0.00063014,120]
[358486271,1745205039591,-500.0,0.00063014,120]
[358486272,1745205039600,-500.0,0.00063014,120]
[358486273,1745205039609,-500.0,0.00063014,120]
[358486274,1745205039618,-500.0,0.00063014,120]
[358486275,1745205039627,-500.0,0.00063014,120]
[358486276,1745205039635,-500.0,0.00063014,120]
[358486277,1745205039644,-500.0,0.00063014,120]
[358486278,1745205039653,-500.0,0.00063014,120]
[358486279,1745205039662,-500.0,0.00063014,120]
[358486280,1745205039671,-500.0,0.00063014,120]
[358486281,1745205039680,-500.0,0.00063014,120]
[358486282,1745205039689,-500.0,0.00063014,120]
[358486283,1745205039698,-500.0,0.00063014,120]
[358486284,1745205039707,-500.0,0.00063014,120]
[358486285,1745205039717,-500.0,0.00063014,120]
[358486286,1745205039727,-500.0,0.00063014,120]
[358486287,1745205039735,-500.0,0.00063014,120]
[358486288,1745205039744,-500.0,0.00063014,120]
[358486289,1745205039754,-500.0,0.00063014,120]
[358486290,1745205039763,-500.0,0.00063014,120]
[358486291,1745205039773,-500.0,0.00063014,120]
[358486292,1745205039784,-500.0,0.00063014,120]
[358486293,1745205039794,-500.0,0.00063014,120]
[358486294,1745205039805,-500.0,0.00063014,120]
[358486295,1745205039815,-500.0,0.00063014,120]
[358486296,1745205039824,-500.0,0.00063014,120]
[358486297,1745205039833,-500.0,0.00063014,120]